bitfinex/quotes_ETHUSD_20250930
["timestamp","ask_amount","ask_price","bid_price","bid_amount"]
[1759244558326,2.52939685,4151.8,4151.2,0.1208]
[1759244558651,2.40867398,4151.7,4151.2,0.1208]
[1759244558858,0.1208,4151.8,4151.2,0.1208]
[1759244559030,0.1208,4151.8,4151.2,2.80823592]
[1759244559352,0.1208,4151.8,4151.2,0.39929784]
[1759244559852,2.52939926,4151.8,4151.2,0.39929784]
[1759244560036,0.1208,4151.8,4151.2,0.39929784]
[1759244560353,2.40865368,4151.7,4151.2,0.1208]
[1759244560552,2.4087245,4151.6,4151.2,0.1208]
[1759244560735,0.1208,4151.8,4151.2,0.1208]
[1759244560736,2.40876842,4151.5,4151.2,0.1208]
[1759244561326,0.1208,4151.8,4151.2,0.1208]
[1759244562147,2.40865187,4151.7,4151.2,0.1208]
[1759244562581,2.40872742,4151.6,4151.2,0.1208]
[1759244562763,2.40865187,4151.7,4151.2,0.1208]
[1759244563145,3.20053361,4152.0,4151.0,0.002]
[1759244563377,2.40900002,4151.1,4151.0,0.002]
[1759244564245,0.792,4151.9,4151.0,0.002]
[1759244564471,2.52968959,4151.3,4151.0,0.002]
[1759244564663,0.1208,4151.3,4151.0,0.002]
[1759244564864,2.4,4152.0,4151.0,0.64341002]
[1759244564865,0.1208,4151.6,4151.0,0.64341002]
[1759244565057,0.1208,4151.8,4151.0,0.1228]
[1759244565271,2.40866282,4151.7,4151.0,0.1228]
[1759244565466,2.40866282,4151.7,4151.0,2.53185773]
[1759244566283,2.40866352,4151.7,4151.0,0.1228]
[1759244566479,2.40865187,4151.7,4151.0,2.53183944]
[1759244567182,2.40871529,4151.6,4151.0,2.53183944]
[1759244567350,0.1208,4151.8,4151.0,0.1228]
[1759244567680,2.40872579,4151.6,4151.0,0.1228]
[1759244567850,0.1208,4151.8,4151.0,0.1228]
[1759244568049,0.1208,4151.8,4151.1,2.40900002]
[1759244568372,0.1208,4151.8,4151.0,0.1228]
[1759244568574,2.52939407,4151.8,4151.0,0.1228]
[1759244568772,0.1208,4151.8,4151.0,0.1228]
[1759244569086,2.40900002,4151.1,4151.0,0.002]
[1759244569493,5.60100002,4151.1,4151.0,0.002]
[1759244570569,5.72358654,4151.1,4151.0,0.002]
[1759244574802,8.51958654,4151.1,4151.0,0.002]
[1759244576001,4.80900002,4151.1,4151.0,0.002]
[1759244576187,7.60500002,4151.1,4151.0,0.002]
[1759244576379,8.39700002,4151.1,4151.0,0.002]
[1759244578010,5.60105805,4151.0,4149.3,0.002]
[1759244578179,0.792,4150.5,4149.3,0.002]
[1759244578375,5.60152243,4150.2,4149.3,0.002]
[1759244579110,5.72232243,4150.2,4149.3,0.002]
[1759244579486,8.51832243,4150.2,4149.3,0.002]
[1759244579705,5.72232243,4150.2,4149.3,0.002]
[1759244579905,8.51832243,4150.2,4149.3,0.002]
[1759244585207,8.51832243,4150.2,4149.1,0.002]
[1759244585208,0.792,4149.7,4149.1,0.002]
[1759244585421,5.60210315,4149.2,4149.1,0.002]
[1759244585629,8.39810315,4149.2,4149.1,0.002]
[1759244586910,2.41027742,4148.9,4148.8,0.002]
[1759244587101,5.20627742,4148.9,4148.8,0.002]
[1759244587702,2.41027742,4148.9,4148.8,0.002]
[1759244587902,5.20727742,4148.9,4148.8,0.002]
[1759244588432,0.37796979,4151.0,4148.8,0.002]
[1759244588433,2.40934559,4150.6,4148.8,0.002]
[1759244588732,2.41011468,4149.2,4148.8,0.002]
[1759244588930,2.4,4149.3,4148.8,0.002]
[1759244589235,2.41023762,4149.0,4148.8,0.002]
[1759244589606,0.792,4149.9,4148.8,0.002]
[1759244589607,2.4090364,4151.1,4148.8,0.002]
[1759244589802,2.4090364,4151.1,4148.9,2.41027742]
[1759244590002,5.197,4151.0,4149.0,0.24122774]
[1759244590316,2.41027742,4148.9,4148.8,0.002]
[1759244591209,5.197,4149.0,4148.8,0.002]
[1759244591210,2.41026525,4149.0,4148.8,0.002]
[1759244591410,2.4,4149.3,4148.8,0.002]
[1759244591742,2.41024791,4149.0,4148.8,0.002]
[1759244591908,2.4,4149.4,4148.8,0.002]
[1759244592106,2.4101487,4149.2,4148.8,0.002]
[1759244592327,0.792,4150.1,4148.8,0.002]
[1759244592328,2.41019468,4149.1,4148.8,0.002]
[1759244592507,2.4,4149.6,4148.8,0.002]
[1759244592508,2.41011956,4149.2,4148.8,0.002]
[1759244592704,2.40998838,4149.4,4148.8,0.002]
[1759244592705,2.40999106,4149.4,4148.8,0.002]
[1759244592940,2.797,4149.5,4148.8,0.24363706]
[1759244593104,2.41009408,4149.3,4148.8,0.24363706]
[1759244593303,5.20693945,4149.5,4148.8,0.002]
[1759244593304,2.797,4149.5,4148.8,0.002]
[1759244593510,2.40985193,4149.7,4148.8,0.002]
[1759244593712,2.4,4150.0,4148.8,0.002]
[1759244594038,2.40994117,4149.5,4148.8,0.002]
[1759244594202,2.4099707,4149.5,4148.8,0.002]
[1759244594602,2.40984048,4149.7,4148.9,0.24143884]
[1759244594603,2.41015103,4149.2,4148.9,0.24143884]
[1759244594835,2.797,4149.5,4148.8,0.002]
[1759244595039,2.41025873,4149.0,4148.8,0.002]
[1759244595217,2.41016123,4149.1,4148.8,0.002]
[1759244595411,2.41027742,4148.9,4148.8,0.002]
[1759244595839,5.20727742,4148.9,4148.8,0.002]
[1759244596038,5.99927742,4148.9,4148.8,0.002]
[1759244596214,8.39927742,4148.9,4148.8,0.002]
[1759244596727,5.60227742,4148.9,4148.8,0.002]
[1759244596914,4.81027742,4148.9,4148.8,0.002]
[1759244597329,2.41010529,4149.2,4148.8,0.002]
[1759244597530,4.81904486,4150.2,4148.8,0.002]
[1759244597531,2.41008684,4149.3,4148.8,0.002]
[1759244597709,2.4,4149.4,4148.8,0.002]
[1759244597910,2.4,4149.6,4148.8,0.002]
[1759244598110,2.41027742,4148.9,4148.8,0.002]
[1759244599539,3.192,4149.9,4148.8,0.002]
[1759244599745,2.4,4149.7,4148.8,0.002]
[1759244600050,2.41022509,4149.0,4148.8,0.002]
[1759244600245,2.40987744,4149.6,4148.8,0.002]
[1759244600551,2.4,4149.5,4148.8,0.002]
[1759244600762,2.41027742,4148.9,4148.8,0.002]
[1759244604462,5.99927742,4148.9,4148.8,0.002]
[1759244605527,8.39927742,4148.9,4148.8,0.002]
[1759244605724,8.52007742,4148.9,4148.8,0.002]
[1759244606861,8.52007742,4148.9,4148.3,0.002]
[1759244606862,5.60256792,4148.4,4148.3,0.002]
[1759244607067,8.52036792,4148.4,4148.3,0.002]
[1759244608175,2.41080038,4148.0,4147.9,1e-08]
[1759244608359,8.39980038,4148.0,4147.9,1e-08]
[1759244610488,5.60280038,4148.0,4147.9,1e-08]
[1759244610670,8.39980038,4148.0,4147.9,1e-08]
[1759244610982,4.81080038,4148.0,4147.9,1e-08]
[1759244611149,7.60780038,4148.0,4147.9,1e-08]
[1759244611544,4.81080038,4148.0,4147.9,1e-08]
[1759244615374,2.40975468,4149.8,4147.9,1e-08]
[1759244615573,2.797,4149.7,4147.9,1e-08]
[1759244615887,0.792,4149.4,4147.9,1e-08]
[1759244616076,4.81041099,4148.7,4148.0,0.24129699]
[1759244616271,2.4,4148.7,4148.0,0.24129699]
[1759244616473,2.40993246,4149.5,4147.9,1e-08]
[1759244616681,2.41026726,4149.0,4148.2,2.41064193]
[1759244616990,2.40987083,4149.6,4148.2,2.41064193]
[1759244616991,2.41030062,4148.9,4148.2,2.41064193]
[1759244617150,2.41017351,4149.1,4148.3,0.02410626]
[1759244617355,4.81006989,4149.3,4148.3,2.4106189]
[1759244617656,2.41038863,4148.8,4148.4,0.48213202]
[1759244617858,2.798,4149.4,4147.9,1e-08]
[1759244617859,2.41028412,4148.9,4147.9,2.41085767]
[1759244618482,2.53103493,4149.0,4148.4,0.1208]
[1759244618663,0.1208,4149.0,4148.4,0.1208]
[1759244618865,2.41027742,4148.9,4148.4,0.1208]
[1759244619065,2.41027742,4148.9,4148.4,0.37394821]
[1759244619255,2.41039533,4148.7,4148.4,0.37394821]
[1759244619454,0.1208,4149.0,4148.4,0.1208]
[1759244619646,0.1208,4149.0,4148.4,2.53133706]
[1759244619984,2.41040146,4148.7,4148.4,0.1208]
[1759244620282,2.41050982,4148.5,4148.4,0.1208]
[1759244620483,2.41028999,4148.9,4147.9,1e-08]
[1759244620687,2.53132283,4148.5,4147.9,1e-08]
[1759244620866,2.41080038,4148.0,4147.9,1e-08]
[1759244622981,2.41074846,4148.1,4147.9,1e-08]
[1759244623279,2.41080038,4148.0,4147.9,1e-08]
[1759244623479,0.1208,4148.2,4147.9,1e-08]
[1759244623688,2.41080038,4148.0,4147.9,1e-08]
[1759244624479,0.1208,4148.2,4147.9,1e-08]
[1759244624683,2.53148552,4148.2,4147.9,1e-08]
[1759244625350,0.1208,4148.2,4147.9,1e-08]
[1759244625552,2.4,4149.1,4147.9,0.25337687]
[1759244625763,5.197,4149.5,4147.9,1e-08]
[1759244626057,2.41036645,4148.8,4148.3,0.1208]
[1759244626682,2.41049199,4148.6,4148.3,0.1208]
[1759244627398,2.4105769,4148.4,4147.9,0.12080001]
[1759244627556,2.41046228,4148.6,4147.9,2.41084047]
[1759244627757,2.41051458,4148.5,4148.2,0.1208]
[1759244628197,2.41047186,4148.6,4148.2,0.1208]
[1759244628565,2.41040317,4148.7,4148.2,0.1208]
[1759244628887,2.41039361,4148.7,4148.2,0.1208]
[1759244629294,0.1208,4148.8,4148.2,0.1208]
[1759244629471,2.4104074,4148.7,4148.2,0.1208]
[1759244629874,0.1208,4148.8,4148.2,0.1208]
[1759244630208,2.5208,4149.0,4148.2,2.83669475]
[1759244630511,2.5208,4149.0,4148.2,0.42605653]
[1759244630711,2.41053959,4148.5,4148.2,0.1208]
[1759244631001,2.41054664,4148.5,4148.2,0.1208]
[1759244631373,2.53119888,4148.7,4148.2,0.1208]
[1759244631374,2.41045171,4148.6,4148.2,0.1208]
[1759244631574,2.41068415,4148.2,4147.9,1e-08]
[1759244631879,2.41080038,4148.0,4147.9,1e-08]
[1759244633501,0.1208,4148.1,4147.9,1e-08]
[1759244634189,2.4,4148.6,4148.0,0.1208]
[1759244634498,0.1218,4148.7,4148.0,0.1208]
[1759244634706,2.4,4148.6,4148.0,0.1208]
[1759244634903,2.41063618,4148.3,4148.0,0.1208]
[1759244635406,2.41080038,4148.0,4147.9,1e-08]
[1759244635867,0.1208,4148.2,4147.9,1e-08]
[1759244636072,2.41080038,4148.0,4147.9,1e-08]
[1759244636598,2.53152648,4148.2,4147.9,1e-08]
[1759244636772,0.1208,4148.2,4147.9,1e-08]
[1759244636973,2.53137465,4148.4,4147.9,1e-08]
[1759244637183,0.1208,4148.4,4147.9,1e-08]
[1759244638025,2.41072645,4148.2,4147.9,1e-08]
[1759244638311,2.53137652,4148.4,4147.9,1e-08]
[1759244638312,0.1208,4148.4,4147.9,1e-08]
[1759244638618,2.41080038,4148.0,4147.9,1e-08]
[1759244639114,2.53160038,4148.0,4147.9,1e-08]
[1759244640189,5.72360038,4148.0,4147.9,1e-08]
[1759244640530,5.60280038,4148.0,4147.9,1e-08]
[1759244641026,5.60280038,4148.0,4147.4,1e-08]
[1759244641027,3.20309101,4147.5,4147.4,1e-08]
[1759244641184,8.40009101,4147.5,4147.4,1e-08]
[1759244641622,2.41237644,4145.3,4143.5,0.2416]
[1759244641796,3.20338172,4147.0,4144.6,0.49077094]
[1759244641797,2.4124414,4145.2,4144.6,0.49077094]
[1759244641995,2.41207969,4145.8,4144.6,2.41277439]
[1759244642222,2.055,4145.9,4144.7,0.24127744]
[1759244642223,2.41231564,4145.4,4144.7,0.24127744]
[1759244642388,2.797,4145.9,4144.7,2.65399504]
[1759244642719,2.4,4146.3,4144.8,0.02412661]
[1759244643017,2.41213321,4145.8,4144.9,2.41259986]
[1759244643228,2.41214944,4145.7,4144.9,2.41259986]
[1759244643516,2.4,4146.2,4145.0,0.26538773]
[1759244643692,2.41208662,4145.8,4145.0,2.67792489]
[1759244643891,2.41196808,4146.0,4144.7,2.65394105]
[1759244644195,2.41226727,4145.5,4144.7,0.24127744]
[1759244644409,2.41233623,4145.4,4144.7,0.24127744]
[1759244644824,2.41220611,4145.6,4144.7,2.6539948]
[1759244645018,2.4,4146.2,4144.8,0.59287895]
[1759244645338,2.41226432,4145.5,4144.8,0.59287895]
[1759244645532,2.41226432,4145.5,4144.8,3.00553923]
[1759244645858,2.4,4146.2,4144.8,3.00553923]
[1759244645859,2.41233267,4145.4,4144.8,0.59287895]
[1759244645999,2.4,4146.2,4144.8,0.59287895]
[1759244646201,2.4,4146.2,4144.9,0.38676737]
[1759244646202,2.4122009,4145.6,4144.9,0.38676737]
[1759244646798,2.4,4146.2,4144.9,0.38676737]
[1759244647023,2.41190516,4146.1,4145.0,2.4124991]
[1759244647223,2.41190516,4146.1,4144.9,0.38676737]
[1759244647224,2.4,4146.0,4144.9,0.38676737]
[1759244647529,2.41235918,4145.4,4144.5,2.41283622]
[1759244647734,2.41206557,4145.9,4144.6,2.41277807]
[1759244647914,2.41229293,4145.5,4144.6,2.41273034]
[1759244648237,2.41229293,4145.5,4144.5,5.21083178]
[1759244648415,2.41229293,4145.5,4144.8,2.41265051]
[1759244649136,2.41227492,4145.5,4144.6,0.52108318]
[1759244649336,2.798,4145.6,4142.7,1.90711908]
[1759244649503,2.798,4145.6,4144.0,2.41311627]
[1759244649504,2.41264763,4144.9,4144.0,2.41311627]
[1759244649705,2.41259361,4145.0,4144.1,2.798]
[1759244650038,2.41236516,4145.4,4144.5,2.41283607]
[1759244650240,2.4,4145.9,4144.1,5.21105547]
[1759244650410,2.41249065,4145.1,4144.8,0.1208]
[1759244650738,0.1208,4145.4,4144.8,0.1208]
[1759244651242,2.4123732,4145.3,4144.8,0.1208]
[1759244651627,0.1208,4145.4,4144.8,0.1208]
[1759244651943,2.41242235,4145.3,4144.8,0.1208]
[1759244652170,0.1208,4145.4,4144.8,0.1208]
[1759244652377,2.53311668,4145.4,4144.8,0.1208]
[1759244652880,0.1208,4145.4,4144.8,2.53345926]
[1759244653072,0.1208,4145.4,4144.8,0.1208]
[1759244653374,2.4125602,4145.0,4144.5,2.798]
[1759244653577,0.1208,4145.1,4144.5,2.9188]
[1759244653870,0.1208,4145.1,4144.6,2.41277433]
[1759244654075,0.1208,4145.1,4144.5,2.9188]
[1759244654272,0.1208,4145.1,4144.5,5.33162162]
[1759244654477,0.1208,4145.1,4144.7,2.41271021]
[1759244654966,0.1208,4145.1,4144.6,2.41277213]
[1759244655372,0.1208,4145.1,4144.6,2.41277807]
[1759244655571,0.1208,4145.1,4144.5,6.15838938]
[1759244655755,2.798,4145.9,4144.6,0.02412778]
[1759244655957,2.53311359,4145.4,4144.8,0.1208]
[1759244656276,2.41238296,4145.3,4144.8,0.1208]
[1759244656462,0.1208,4145.4,4144.8,0.1208]
[1759244656663,0.1208,4145.4,4144.8,2.53343618]
[1759244656863,0.1208,4145.4,4144.8,0.1208]
[1759244657173,0.1208,4145.4,4144.9,0.02412603]
[1759244657382,0.1208,4145.4,4144.9,2.43667312]
[1759244657546,0.1208,4145.4,4145.0,2.41253014]
[1759244657949,0.1208,4145.4,4144.9,2.43671859]
[1759244658143,0.1208,4145.4,4144.8,3.06660231]
[1759244658343,0.1208,4145.4,4144.8,0.1208]
[1759244658564,0.1208,4145.4,4144.8,2.53342293]
[1759244659369,0.1208,4145.4,4144.8,0.1208]
[1759244659541,0.1208,4145.4,4144.9,2.41260344]
[1759244659989,0.1208,4145.4,4144.8,2.53344104]
[1759244660190,0.1208,4145.4,4144.9,2.43672947]
[1759244660378,0.1208,4145.7,4145.2,2.41242103]
[1759244660694,0.1208,4145.7,4145.1,0.1208]
[1759244660860,2.412383,4145.3,4144.5,2.798]
[1759244661065,2.412383,4145.3,4144.9,0.1208]
[1759244661266,2.53294198,4145.7,4144.9,0.1208]
[1759244661474,2.4123027,4145.5,4144.9,2.53340162]
[1759244661675,0.1208,4145.7,4144.9,0.1208]
[1759244661891,0.1208,4145.7,4144.9,2.53338418]
[1759244662197,2.41220851,4145.6,4144.9,2.5333902]
[1759244662386,2.41225814,4145.5,4144.9,2.5333902]
[1759244662588,2.41221135,4145.6,4144.9,2.5333902]
[1759244662790,2.41220031,4145.6,4144.9,0.1208]
[1759244663003,2.41220031,4145.6,4144.9,2.53336677]
[1759244663004,2.4122329,4145.6,4144.9,2.53336677]
[1759244663171,2.5329737,4145.7,4145.0,2.41253672]
[1759244663367,2.5329743,4145.7,4145.0,2.41254523]
[1759244663563,2.41098925,4147.7,4145.1,2.82212487]
[1759244663769,17.55479148,4148.2,4145.1,2.82212487]
[1759244663770,0.792,4146.1,4145.1,2.798]
[1759244664208,2.41236006,4145.4,4145.1,2.798]
[1759244664509,2.41265442,4144.9,4144.3,0.49067967]
[1759244664683,2.41250751,4145.1,4144.6,2.798]
[1759244664882,2.41260699,4144.9,4144.6,2.798]
[1759244665108,2.41267279,4144.8,4144.6,2.798]
[1759244665306,0.792,4145.6,4144.6,2.798]
[1759244665795,2.41261128,4144.9,4144.6,2.798]
[1759244666001,2.41262224,4144.9,4144.6,2.798]
[1759244666182,2.41254812,4145.0,4144.5,2.798]
[1759244666576,2.41261243,4144.9,4144.5,2.798]
[1759244666794,2.41244043,4145.2,4144.5,2.798]
[1759244666995,2.41270763,4144.8,4144.5,2.798]
[1759244667198,2.41276472,4144.7,4144.3,0.002]
[1759244667515,2.41237063,4145.3,4144.3,0.002]
[1759244667809,2.4128945,4144.4,4144.3,0.002]
[1759244670612,0.792,4144.9,4144.3,0.002]
[1759244670810,2.41266164,4144.8,4144.3,0.002]
[1759244671009,2.4,4144.8,4144.3,0.002]
[1759244671389,2.41278252,4144.6,4144.3,0.002]
[1759244671588,2.41277311,4144.7,4144.3,0.002]
[1759244671792,2.41280245,4144.6,4144.3,0.002]
[1759244672001,0.792,4145.2,4144.3,0.002]
[1759244672186,2.41266453,4144.8,4144.3,0.002]
[1759244672514,5.199,4145.3,4144.3,0.002]
[1759244672515,3.20442883,4145.2,4144.3,0.002]
[1759244672686,2.4,4145.1,4144.3,0.002]
[1759244672893,2.4128945,4144.4,4144.3,0.002]
[1759244673681,2.5336945,4144.4,4144.3,0.002]
[1759244675715,0.1208,4144.4,4144.3,0.002]
[1759244675932,0.1208,4144.7,4144.3,0.002]
[1759244676219,2.41278619,4144.6,4144.3,0.002]
[1759244676531,2.41248301,4145.2,4144.3,0.1228]
[1759244676685,2.53342693,4144.9,4144.3,0.1228]
[1759244676884,2.53342693,4144.9,4144.3,0.37638058]
[1759244677118,2.41271043,4144.8,4144.3,0.1228]
[1759244677319,2.53340769,4144.9,4144.3,0.1228]
[1759244677629,2.799,4145.3,4144.3,0.1228]
[1759244677630,2.41051993,4148.5,4144.4,0.02412894]
[1759244677840,0.1208,4145.9,4144.8,0.1208]
[1759244677985,0.1208,4145.9,4144.3,0.002]
[1759244677986,2.41162531,4146.6,4145.5,2.41221016]
[1759244678318,2.41160717,4146.7,4145.5,2.65343118]
[1759244678623,2.41180457,4146.3,4145.5,2.65343118]
[1759244678824,0.001,4147.0,4145.5,0.24122102]
[1759244679029,0.001,4147.0,4145.6,0.02412196]
[1759244679030,2.41143987,4146.9,4145.6,0.02412196]
[1759244679184,2.41091663,4147.8,4146.2,2.4117937]
[1759244679382,2.799,4147.7,4145.7,2.799]
[1759244679617,2.41172821,4146.5,4145.7,2.799]
[1759244679916,2.41162957,4146.6,4145.7,2.799]
[1759244680122,2.4117444,4146.4,4145.5,2.89528294]
[1759244680417,2.41174691,4146.4,4145.6,2.41219487]
[1759244680714,2.41174691,4146.4,4145.7,3.22278382]
[1759244680902,2.4,4147.0,4145.7,0.81065695]
[1759244681110,2.4,4147.0,4145.8,0.02412079]
[1759244681420,2.41167482,4146.5,4145.5,2.43637458]
[1759244681586,2.41162314,4146.6,4145.8,2.41202906]
[1759244681782,2.41162314,4146.6,4145.9,2.41200267]
[1759244682018,2.41149334,4146.9,4146.1,2.41190516]
[1759244682243,2.41151521,4146.8,4146.1,2.41190516]
[1759244682442,2.798,4147.2,4146.0,0.2436124]
[1759244682443,0.792,4147.8,4146.2,0.02411846]
[1759244682651,0.792,4147.5,4146.2,0.02411846]
[1759244682932,0.792,4147.5,4145.9,2.41201553]
[1759244682933,2.41160764,4146.7,4145.9,2.41201553]
[1759244683105,2.41120729,4147.3,4146.0,0.24120155]
[1759244683302,2.41120729,4147.3,4145.4,2.799]
[1759244683528,3.192,4147.6,4145.8,2.41202941]
[1759244683846,2.41166855,4146.6,4145.8,2.41206477]
[1759244684340,2.41155617,4146.7,4145.7,2.41213787]
[1759244684709,2.41155617,4146.7,4145.9,2.41196551]
[1759244684908,2.4,4147.5,4146.0,0.48241034]
[1759244684909,2.41150793,4146.8,4146.0,0.48241034]
[1759244685110,2.41144765,4146.9,4146.1,2.41189615]
[1759244685311,2.41167246,4146.6,4146.0,0.48241034]
[1759244685638,5.20923071,4147.3,4146.0,0.48241034]
[1759244685639,2.4,4147.2,4146.0,0.48241034]
[1759244685811,2.41148326,4146.9,4146.1,2.41188752]
[1759244686244,2.41151019,4146.8,4146.1,2.41188752]
[1759244686543,5.198,4147.5,4146.3,2.41178003]
[1759244686844,4.81114915,4147.4,4146.4,2.4117224]
[1759244687028,2.41122761,4147.3,4146.3,2.41177941]
[1759244687233,2.41133262,4147.1,4146.2,2.798]
[1759244687430,2.41133262,4147.1,4146.2,3.56018823]
[1759244687742,0.001,4147.9,4146.6,2.41161306]
[1759244688040,0.001,4147.9,4146.2,4.03192727]
[1759244688041,2.41120729,4147.3,4146.8,0.1208]
[1759244688240,2.41127493,4147.2,4146.8,0.1208]
[1759244689045,0.1208,4147.4,4146.8,0.1208]
[1759244689345,2.41133576,4147.1,4146.8,0.1208]
[1759244689522,2.41127953,4147.2,4146.8,0.1208]
[1759244689742,0.001,4147.0,4146.8,0.1208]
[1759244689944,2.41242923,4147.0,4146.8,0.1208]
[1759244690150,0.001,4147.0,4146.8,0.1208]
[1759244691736,0.001,4147.0,4146.8,2.53228434]
[1759244692040,0.001,4147.0,4146.9,2.43555426]
[1759244692936,0.001,4147.0,4146.9,5.23255426]
[1759244693278,0.001,4147.0,4146.9,5.32923987]
[1759244696467,0.001,4147.0,4146.9,7.72923987]
[1759244698554,0.001,4147.0,4146.9,7.60843987]
[1759244698753,0.001,4147.0,4146.9,8.78067646]
[1759244701251,0.001,4147.0,4146.9,5.98367646]
[1759244701455,0.001,4147.0,4146.9,8.77967646]
[1759244702280,0.001,4147.9,4147.8,2.41091663]
[1759244702482,0.001,4147.9,4147.8,7.72771663]
[1759244702655,0.001,4147.9,4147.8,8.74158734]
[1759244708897,0.001,4147.9,4147.8,8.74058734]
[1759244711698,0.001,4148.7,4148.6,2.41045171]
[1759244711896,0.001,4148.7,4148.6,5.32625171]
[1759244712444,0.001,4148.7,4148.6,7.72625171]
[1759244712594,0.001,4148.7,4148.6,8.73992944]
[1759244712942,0.001,4148.7,4148.6,9.22216339]
[1759244713497,0.001,4148.7,4148.6,10.01416339]
[1759244713918,0.001,4148.7,4148.6,9.89336339]
[1759244714425,0.001,4148.7,4148.6,9.10136339]
[1759244714926,0.001,4148.7,4148.6,3.27723395]
[1759244715126,0.001,4148.7,4148.6,5.68768566]
[1759244716223,0.001,4148.7,4148.6,2.795]
[1759244720030,0.001,4148.7,4147.9,0.48656524]
[1759244720031,2.41050373,4148.6,4147.8,2.41091444]
[1759244720336,0.001,4148.7,4148.0,2.41079705]
[1759244720337,2.4114135,4148.7,4148.0,2.41079705]
[1759244720504,2.4114135,4148.7,4148.1,2.795]
[1759244720864,0.001,4148.7,4148.1,2.795]
[1759244721516,0.001,4148.7,4148.2,0.02410684]
[1759244721918,0.001,4148.7,4148.2,0.49839639]
[1759244722300,0.001,4148.7,4148.2,2.90907559]
[1759244722723,0.001,4148.7,4148.1,2.795]
[1759244722918,2.41053065,4148.5,4147.8,2.89308471]
[1759244723139,2.41142753,4148.7,4147.9,2.795]
[1759244723342,2.41056551,4148.5,4147.9,2.795]
[1759244723497,0.001,4148.7,4147.9,2.795]
[1759244723703,2.41139402,4148.7,4148.0,2.41078166]
[1759244724001,0.001,4148.7,4148.1,0.02410742]
[1759244724335,0.001,4148.7,4148.4,0.1208]
[1759244724520,0.001,4148.7,4148.6,2.53125171]
[1759244724703,0.001,4148.7,4148.6,0.1208]
[1759244725197,0.001,4148.7,4148.6,0.14490451]
[1759244725630,0.001,4148.7,4148.6,2.53125171]
[1759244725950,0.001,4148.7,4148.6,2.55535622]
[1759244726638,0.001,4148.7,4148.6,3.30724394]
[1759244727929,0.001,4148.7,4148.6,0.1208]
[1759244728645,2.41139361,4148.7,4148.6,0.1208]
[1759244728940,2.41139911,4148.7,4148.5,2.794]
[1759244729101,0.001,4148.7,4148.5,2.794]
[1759244730403,2.41045171,4148.6,4148.5,2.794]
[1759244731034,2.41141013,4148.7,4148.5,2.794]
[1759244731217,2.41045171,4148.6,4148.5,2.794]
[1759244731641,2.41140138,4148.7,4148.5,2.794]
[1759244732002,2.41045171,4148.6,4148.5,2.794]
[1759244733043,2.41062603,4148.3,4148.2,0.1208]
[1759244733244,0.001,4148.7,4147.8,0.002]
[1759244733245,2.41080882,4148.0,4147.8,0.002]
[1759244733559,2.41074226,4148.1,4147.8,0.002]
[1759244734118,2.4107091,4148.2,4147.8,0.002]
[1759244734515,2.41082967,4148.0,4147.8,0.002]
[1759244734749,2.41084737,4148.0,4147.8,0.002]
[1759244735181,0.1208,4148.3,4147.8,0.002]
[1759244735182,2.4107433,4148.1,4147.8,0.002]
[1759244735382,2.41068415,4148.2,4147.8,0.002]
[1759244735744,0.1208,4148.3,4147.8,0.002]
[1759244736169,2.41064492,4148.3,4147.8,0.002]
[1759244736480,2.5316585,4147.9,4147.8,0.002]
[1759244737282,0.1208,4147.9,4147.8,0.002]
[1759244737444,2.5316585,4147.9,4147.8,0.002]
[1759244737777,0.001,4148.7,4147.8,0.002]
[1759244737977,2.4108585,4147.9,4147.8,0.002]
[1759244738281,2.41080038,4148.0,4147.8,0.002]
[1759244738451,2.4108585,4147.9,4147.8,0.002]
[1759244741059,0.1208,4148.1,4147.8,0.002]
[1759244741266,0.1208,4148.2,4147.8,0.002]
[1759244741468,2.41085052,4148.0,4147.8,0.002]
[1759244741977,0.1208,4148.2,4147.8,0.002]
[1759244742172,2.41080038,4148.0,4147.8,0.002]
[1759244742372,2.4108585,4147.9,4147.8,0.002]
[1759244742956,2.53149147,4148.2,4147.8,0.002]
[1759244743153,0.1208,4148.2,4147.8,0.002]
[1759244743367,2.53149801,4148.2,4147.8,0.002]
[1759244743568,2.795,4148.7,4147.8,2.82010916]
[1759244743569,0.1208,4148.5,4147.8,2.82010916]
[1759244743769,2.41062633,4148.3,4148.0,0.1208]
[1759244744080,2.41057922,4148.4,4148.0,0.1208]
[1759244744282,2.41069462,4148.2,4148.0,0.1208]
[1759244744778,2.41074226,4148.1,4148.0,0.1208]
[1759244744958,0.1208,4148.5,4148.0,0.1208]
[1759244745164,2.41074226,4148.1,4148.0,0.1208]
[1759244745475,0.1208,4148.2,4147.8,2.796]
[1759244745678,0.792,4148.5,4147.8,2.796]
[1759244745861,2.5316585,4147.9,4147.8,2.796]
[1759244746483,2.5316585,4147.9,4147.8,0.002]
[1759244747780,8.5176585,4147.9,4147.8,0.002]
[1759244750607,3.20314915,4147.4,4147.3,0.002]
[1759244750757,8.51794915,4147.4,4147.3,0.002]
[1759244752077,3.20338172,4147.0,4146.9,1e-08]
[1759244752288,8.39738172,4147.0,4146.9,1e-08]
[1759244752860,8.39838172,4147.0,4146.9,1e-08]
[1759244754077,8.51918172,4147.0,4146.9,1e-08]
[1759244754757,5.72418172,4147.0,4146.9,1e-08]
[1759244755002,4.93218172,4147.0,4146.9,1e-08]
[1759244755588,7.72718172,4147.0,4146.9,1e-08]
[1759244756458,4.93218172,4147.0,4146.9,1e-08]
[1759244757957,8.51918172,4147.0,4146.9,1e-08]
[1759244761180,5.72418172,4147.0,4146.9,1e-08]
[1759244761385,8.51918172,4147.0,4146.9,1e-08]
[1759244761988,7.72718172,4147.0,4146.9,1e-08]
[1759244762293,4.93218172,4147.0,4146.9,1e-08]
[1759244775489,0.09668807,4148.3,4146.9,1e-08]